Cogmind - Beta 16 @@@ ROGUE MODE // 2026.01.30 @ 00:28:18 Player: Assis Result: Destroyed by G-47 Trooper with Particle Gun Performance ------------- Evolutions (1) 500 Regions Visited (2) 400 Robots Destroyed (33) 165 Value Destroyed (599) 599 Prototype IDs (2) 40 Alien Tech Used (0) 0 Bonus (0) 0 TOTAL SCORE: 1704 Bonus ------- None Cogmind --------- Core Integrity 0/400 Matter 284/300 Energy 250/250 System Corruption 4% Temperature Cool (87) Movement Treading (480) Ox4 Location -9/Materials Parts ------- > --- POWER (1) -------- Ion Engine > --- PROPULSION (2) --- Light Treads > --- UTILITY (4) ------ Huge Storage Unit > --- WEAPON (2) ------- Beam Rifle Shotgun > --- INVENTORY (25) --- Light Ion Engine Improved Ion Engine VTOL Module VTOL Module VTOL Module VTOL Module Small Storage Unit High-capacity Storage Unit Structural Scanner Machine Analyzer Sensor Array Improved Terrain Scanner Transport Network Coupler Hammer Hammer Peak State ------------ > --- POWER ------------ Improved Ion Engine > --- PROPULSION ------- Light Treads Light Treads > --- UTILITY ---------- Huge Storage Unit > --- WEAPON ----------- Beam Rifle Shotgun > --- INVENTORY -------- Ion Engine Light Ion Engine Improved Ion Engine VTOL Module VTOL Module VTOL Module VTOL Module Small Storage Unit High-capacity Storage Unit Structural Scanner Machine Analyzer Sensor Array Improved Terrain Scanner Transport Network Coupler Hammer Hammer [Rating: 11] Favorites ----------- Power Light Ion Engine Engine Light Ion Engine Propulsion Light Treads Treads Light Treads Flight Unit Flight Unit Utility Huge Storage Unit Device Seismic Detector Storage Huge Storage Unit Weapon Light Assault Rifle Energy Gun Beam Rifle Ballistic Gun Light Assault Rifle Impact Weapon Hammer Build | -11 -10 -9 ------- Run | Yrd Mat Mat Slots Evolved 2 | . . 2 Power . | . . . Propulsion . | . . . Utility 2 | . . 2 Weapon . | . . . Parts Attached 23 | 6 6 11 Power 6 | 1 1 4 Engine 6 | 1 1 4 Core . | . . . Reactor . | . . . Propulsion 5 | 2 . 3 Treads 4 | 2 . 2 Leg . | . . . Wheel . | . . . Hover . | . . . Flight 1 | . . 1 Utility 4 | 2 1 1 Device 1 | 1 . . Storage 3 | 1 1 1 Processor . | . . . Hackware . | . . . Protection . | . . . Artifact . | . . . Weapon 8 | 1 4 3 Energy Gun 1 | . . 1 Energy Cannon . | . . . Ballistic Gun 6 | 1 4 1 Ballistic Cannon . | . . . Launcher . | . . . Special Weapon . | . . . Impact Weapon 1 | . . 1 Slashing Weapon . | . . . Piercing Weapon . | . . . Special Melee Weapon . | . . . Unidentified Prototypes . | . . . Parts Lost 8 | . 3 5 Power 2 | . . 2 Propulsion 3 | . 1 2 Utility 1 | . 1 . Weapon 2 | . 1 1 Highest Loss Streak 2 | . 2 2 To Critical Strikes . | . . . Average Backups 12 | . 9 15 Power 2 | . 2 2 Propulsion 3 | . 2 4 Utility 5 | . 4 6 Weapon 1 | . . 2 Tool/Special . | . . . Unused Backups 15 | . . 15 Power 1 | . . 1 Propulsion 8 | . . 8 Utility 5 | . . 5 Weapon 1 | . . 1 Tool/Special . | . . . Average Slot Usage (%) 69 | . 84 59 Engine 12 | . 14 10 Treads 19 | . 22 17 Device 2 | . 6 . Storage 12 | . 14 11 Energy Gun 2 | . . 4 Ballistic Gun 19 | . 26 15 Peak Build Rating 11 | 6 8 11 Average Rating 7 | 4 6 9 On Entrance 4 | . 6 6 Avg Prop Armor Cover (%) . | . . . Naked Turns . | . . . Heaviest Build 93 | 11 47 93 Greatest Support 40 | 40 40 40 Greatest Overweight (x) 4 | . 2 4 Average Overweight (x) 1 | . 1 2 Largest Inventory Capacity 25 | 8 20 25 Average Capacity 21 | 6 19 24 Most Carried 20 | 2 15 20 Average Carried 12 | . 9 15 Final Capacity 25 | 8 20 25 Final Carried 15 | 2 15 15 Class Distribution -------------------- 100% | Mutant Dominant Class ---------------- Mutant | -10/Materials Mutant | -9/Materials Resources | -11 -10 -9 ----------- Run | Yrd Mat Mat Matter Collected 775 | 158 379 238 Remotely . | . . . Salvage Created 987 | 28 505 454 Parts 69 | 3 39 27 Haulers Intercepted 2 | . 1 1 Recyclers Shooed 2 | . 1 1 Parts Field Recycled . | . . . Retrieved Matter . | . . . Parts Self-Destructed . | . . . Prevented . | . . . Parts Restored . | . . . Kills | -11 -10 -9 ------- Run | Yrd Mat Mat Combat Hostiles Destroyed 22 | . 12 10 Guns 22 | . 12 10 Classes Destroyed 10 | 1 6 3 Worker 1 | . . 1 Builder 4 | . 3 1 Tunneler 1 | 1 . . Hauler 2 | . 1 1 Recycler 1 | . 1 . Mechanic 1 | . 1 . Operator 1 | . . 1 Swarmer 11 | . 8 3 Grunt 9 | . 4 5 Sentry 2 | . . 2 Best Kill Streak 5 | 1 5 4 Combat Bots Only 4 | . 4 4 Max Kills in Single Turn 2 | 1 1 2 Gunslinging . | . . . Exploded . | . . . Melee . | . . . Uniques/NPCs Destroyed . | . . . Combat | -11 -10 -9 -------- Run | Yrd Mat Mat Hostile Shots Fired 178 | . 101 77 Missed 47 | . 31 16 Hits 131 | . 70 61 Projectile 131 | . 70 61 Critical Strikes 2 | . 1 1 Damage Taken 1886 | . 688 1198 Core 575 | . 164 411 Absorbed by Shields . | . . . Core Remaining (%) 67 | 100 34 . Volleys Fired 124 | 5 67 52 Largest 2 | 1 2 2 Hottest 79 | 20 40 79 Shots Fired 225 | 5 124 96 Gun 225 | 5 124 96 Cannon . | . . . Launcher . | . . . Special . | . . . Kinetic 213 | 5 124 84 Thermal 12 | . . 12 Explosive . | . . . Electromagnetic . | . . . Robot Hit Streak 14 | 1 8 14 Robot Miss Streak 4 | 1 4 3 Penetration Max . | . . . Secondary Targets 3 | . 3 . Max Gunslinging Chain 1 | . 1 . Shots Hit Robots 150 | 2 76 72 Core Hits 62 | 1 32 29 Critical Kills . | . . . Critical Parts Destroyed . | . . . Critical Strikes 1 | . . 1 Burn 1 | . . 1 Melee Attacks 5 | . . 5 Impact 5 | . . 5 Slashing . | . . . Piercing . | . . . Sneak Attacks . | . . . Combat Hostiles . | . . . Follow-up Attacks . | . . . Damage Inflicted 1677 | 21 859 797 Guns 1627 | 21 845 761 Cannons . | . . . Explosions . | . . . Melee . | . . . Ramming 50 | . 14 36 Kinetic 1526 | 21 845 660 Thermal 101 | . . 101 Explosive . | . . . Electromagnetic . | . . . Impact . | . . . Slashing . | . . . Piercing . | . . . Highest Corruption 4 | . . 4 Average Corruption 4 | . . 4 Corruption Purged . | . . . Corruption Blocked . | . . . Effects 3 | . . 3 Matter Fused 1 | . . 1 Heat Flow Errors 1 | . . 1 Energy Discharges 1 | . . 1 Overload Shots . | . . . Overflow Damage . | . . . Projectiles . | . . . Explosions . | . . . Melee . | . . . Knockbacks . | . . . Impact . | . . . Kinetic . | . . . Secondary . | . . . Self-Inflicted Damage . | . . . Shots . | . . . Rammed 12 | . 5 7 Targets Rammed 13 | . 5 8 Kicked . | . . . Crushed 1 | . . 1 Highest Temperature 211 | . 18 211 Average Temperature 38 | . 10 48 Received Heat Transfer 465 | . 138 327 Siege Activations . | . . . Martial Activations . | . . . Shielding Activations . | . . . Robots Disrupted . | . . . Combat Hostiles . | . . . Robots Corrupted . | . . . Combat Hostiles . | . . . Parts Fried . | . . . Impact Corruptions . | . . . Robots Melted . | . . . Combat Hostiles . | . . . Parts Melted . | . . . Heat Transferred 333 | . . 333 Parts Sabotaged . | . . . Parts Stolen . | . . . Parts Stripped . | . . . Power Chain Reactions . | . . . Alert | -11 -10 -9 ------- Run | Yrd Mat Mat Maximum Alert Level . | . . . Low Security (%) 100 | 100 100 100 Level 1 . | . . . Level 2 . | . . . Level 3 . | . . . Level 4 . | . . . Level 5 . | . . . High Security . | . . . Max Security . | . . . Peak Influence 120 | 5 108 120 Initial . | . . . Average 19 | . 27 14 Influence Increases 650 | 5 325 320 Destroy 0b10 Robot/C 440 | . 240 200 Destroy 0b10 Robot/NC 55 | 5 30 20 Destroy Leader 94 | . 42 52 Successful Hack 13 | . 13 . Destroy Structure 3 | . . 3 Lose Combat Pursuer 45 | . . 45 Influence Decreases 594 | 5 325 264 Time Decay 564 | 5 295 264 Lost Part 30 | . 30 . Squads Dispatched 2 | . 1 1 Investigation . | . . . Extermination . | . . . Reinforcement 2 | . 1 1 Assault . | . . . Garrison . | . . . Intercept . | . . . Searches Triggered . | . . . Construction Impeded . | . . . Haulers Reinforced . | . . . Active Scanning Responses . | . . . Cargo Convoy Interrupts . | . . . Stealth | -11 -10 -9 --------- Run | Yrd Mat Mat Distress Signals 6 | . 4 2 Communications Jammed . | . . . Distress Signals . | . . . Times Spotted 49 | . 28 21 Peak Tracking Total 6 | . 6 6 Tactical Retreats 2 | . . 2 Traps | -11 -10 -9 ------- Run | Yrd Mat Mat Traps Triggered 2 | . 2 . Indirectly . | . . . Trap Hack Attempts . | . . . Triggered . | . . . Disarmed . | . . . Reprogrammed . | . . . Reused . | . . . Traps Extracted . | . . . Installed . | . . . Triggered . | . . . Machines | -11 -10 -9 ---------- Run | Yrd Mat Mat Machines Disabled . | . . . Max in Single Turn . | . . . Machines Repaired . | . . . Machines Dismantled . | . . . Machines Sabotaged . | . . . Overloaded Fab Kills . | . . . Hacking | -11 -10 -9 --------- Run | Yrd Mat Mat Machines Accessed 3 | . 2 1 Terminals 3 | . 2 1 Fabricators . | . . . Repair Stations . | . . . Recycling Units . | . . . Scanalyzers . | . . . Garrison Access . | . . . Total Hacks 9 | . 8 1 Successful 5 | . 5 . Failed 4 | . 3 1 Catastrophic 2 | . 1 1 Database Lockouts . | . . . Manual 8 | . 7 1 Terminals 9 | . 8 1 Fabricators . | . . . Repair Stations . | . . . Recycling Units . | . . . Scanalyzers . | . . . Garrison Access . | . . . Terminal Hacks 5 | . 5 . Prototype ID Bank 1 | . 1 . Branch Access Points 1 | . 1 . Terminal Index 1 | . 1 . Hauler Manifests 1 | . 1 . Registered Components 1 | . 1 . Fabricator Hacks . | . . . Repair Station Hacks . | . . . Recycling Unit Hacks . | . . . Scanalyzer . | . . . Garrison Access Hacks . | . . . Unauthorized Hacks . | . . . Terminals . | . . . Fabricators . | . . . Repair Stations . | . . . Recycling Units . | . . . Scanalyzers . | . . . Garrison Access . | . . . Data Cores Recovered . | . . . Used . | . . . Hacking Detections 3 | . 2 1 Full Trace Events . | . . . Feedback Events . | . . . Feedback Blocked . | . . . Robot Schematics Acquired . | . . . Robots Built . | . . . Authchips . | . . . Time . | . . . Total Robot Build Rating . | . . . Part Schematics Acquired . | . . . Parts Built . | . . . Authchips . | . . . Time . | . . . Total Part Build Rating . | . . . Part Studies Acquired . | . . . Parts Repaired . | . . . Time . | . . . Parts Recycled . | . . . Recycled Matter . | . . . Retrieved Matter . | . . . Retrieved Components . | . . . Parts Scanalyzed . | . . . Part Schematics Acquired . | . . . Parts Damaged . | . . . Bothacking | -11 -10 -9 ------------ Run | Yrd Mat Mat Used RIF Installer . | . . . Robots Hacked . | . . . Non-combat . | . . . Combat . | . . . Robot Hacks Applied . | . . . Relay Couplers Released . | . . . Fabnet Peak Effective % . | . . . Robots Rewired . | . . . Allies Hacked . | . . . Hacks Repelled . | . . . Allies | -11 -10 -9 -------- Run | Yrd Mat Mat Total Allies . | . . . Largest Group . | . . . Highest-Rated Group . | . . . Highest-Rated Ally . | . . . Total Orders . | . . . Ally Attacks . | . . . Total Damage . | . . . Kills . | . . . Allies Corrupted . | . . . Allies Melted . | . . . Intel | -11 -10 -9 ------- Run | Yrd Mat Mat Active Infowar (turns) 595 | 32 563 . Seismic 595 | 32 563 . Robot Analysis Total . | . . . Derelict Logs Recovered . | . . . Drone Launches . | . . . Drone Recoveries . | . . . Exploration | -11 -10 -9 ------------- Run | Yrd Mat Mat Turns Passed 3011 | 131 1180 1700 Spaces Moved 861 | 73 360 428 Core 5 | 5 . . Treads 856 | 68 360 428 Legs . | . . . Wheels . | . . . Hover . | . . . Flight . | . . . Fastest Speed 50 | 50 160 320 Average Speed 297 | 152 268 347 Slowest Speed 480 | 160 320 480 Overloaded Moves . | . . . Propulsion Burnouts . | . . . Robots Hopped . | . . . Potential Cave-ins . | . . . Cave-ins Triggered 1 | . . 1 Exploration Rate (%) 26 | 4 52 23 Regions Visited 2 Branch Regions . Pre-discovered Areas . | . . . Known Exits Taken . | . . . Unknown Exits Taken 2 | 1 1 . Scrap Searched . | . . . Spaces Dug 3 | . . 3 Terrain Destroyed 3 | . . 3 Melee 3 | . . 3 Projectile . | . . . AOE . | . . . Terrain Rammed . | . . . Walls Destroyed . | . . . Machines Disabled . | . . . Actions | -11 -10 -9 --------- Run | Yrd Mat Mat Total 1072 | 85 457 530 Wait 13 | . 3 10 Move 859 | 72 359 428 Hop . | . . . Pick Up 20 | 2 13 5 Fast Attach 12 | 6 2 4 Attach 5 | . . 5 Detach 4 | . . 4 Swap 7 | . 4 3 Drop 10 | . 4 6 Fire 124 | 5 67 52 Melee 5 | . . 5 Ram . | . . . Kick . | . . . Crush 13 | . 5 8 Escape Stasis . | . . . Rewire . | . . . Trap . | . . . Miscellaneous . | . . . Route ------- -11/Scrapyard -10/Materials (discovered 3 exits: *Mat / *Min x2) -9/Materials History --------- Turn | Location | Event 80 | -11/Scrapyard | Discovered new exit (range 15) 132 | -11/Scrapyard | Entered Materials 134 | -10/Materials | Discovered new exit (range 15) 308 | -10/Materials | Build established: Mutant 453 | -10/Materials | Identified exit to Mines 706 | -10/Materials | Core integrity fell below 50% 1264 | -10/Materials | Discovered new exit (range 15) 1312 | -10/Materials | Entered another Materials area 1312 | -9/Materials | Evolved 2 slots: Utility x2 2879 | -9/Materials | Crushed by falling debris 2879 | -9/Materials | Core integrity fell below 50% 2879 | -9/Materials | Core integrity fell below 20% 3012 | -9/Materials | Destroyed by G-47 Trooper with Particle Gun Last Messages --------------- 02956_ K-01 Serf cleans the Terminal. 02959_ Acquired 28 matter. 02961_ U-05 Engineer builds a Wall. 02962_ K-01 Serf collects debris. 02964_ W-16 Scout suffers critical hit (Burn). 02965_ Acquired 4 matter. 02966_ K-01 Serf collects debris. 02968_ R-06 Scavenger collects Aluminum Leg. 02970_ K-01 Serf collects debris. 02973_ R-06 Scavenger collects Ion Engine. 02974_ K-01 Serf collects debris. 02977_ R-06 Scavenger collects Ion Engine. 02980_ K-01 Serf collects debris. 02981_ System corrupted: Matter fused (-6). 02983_ C-30 ARC bursts open, deploying its payload. 02983_ G-47 Trooper unfolds itself. 02983_ G-34 Mercenary unfolds itself. 02983_ K-01 Serf collects debris. 02986_ Acquired 6 matter. 02987_ U-05 Engineer destroyed. Map ----- +----------------------------------------------------+ | # % # # [ ## #?????????????????? | | # # # ## #?????????????????? | | #! # # = ## ##????????????????? | | ### #### ####+### #????????????????? | | ??# #### # #????????????????? | | ??# + # " #????????????????? | | ??## # # #????????????????? | | ???# #########+### #????????????????? | | ???# #???# ###+######?????????????? | | ???# #???# !! # #?????????????? | | ???# %##### !! # """ #?????????????? | | ???# %% %+ ! # """ #?????????????? | | ##########%## # """ #?????????????? | | # #%## # #?????????????? | | # #%######### """ #?????????????? | | # !! # #???????# "T #?????????????? | | # ! # ##??????# """ #?????????????? | | # ! + #??????# #?????????????? | | # """ # #################?????????????? | | #* """ # ## #??????????????????????? | | # """ # ##" #??????????????????????? | | # # ##T #??????????????????????? | | ########## ##" #??????????????????????? | | ??# # ## #??????????????????????? | | ??# !! + ## #??????????????????????? | | ??# !! # ## %@#??????????????????????? | | ??# #^^#####g########+####???????????? | | ??# # % !%=%" ????????? | | ??# # ????????? | | ??####################### ????????? | | ????????????????????????????? ?????????? | | ??????????????????????????????????????????? | | ??????????????????????????????????????????? | | ??????????????????????????????????????????? | | ??????????????????????????????????????????? | | ??????????????????????????????????????????? | | ??????????????????????????????????????????? | | ??????????????????????????????????????????? | | ??????????????????????????????????????????? | | ??????????????????????????????????????????? | | ??????????????????????????????????????????? | | ??????????????????????????????????????????? | | ??????????????????????????????????????????? | | ??????????????????????????????????????????? | | ??????????????????????????????????????????? | | ??????????????????????????????????????????? | | ??????????????????????????????????????????? | | ??????????????????????????????????????????? | | ??????????????????????????????????????????? | | ??????????????????????????????????????????? | +----------------------------------------------------+ Best States ------------- Heat Dissipation 28 Energy Generation 12 Energy Capacity 265 Matter Stores 300 Matter Capacity 300 Sight Range 16 Terrain Scan Density 10 Evasion (%) 40 Recoil Reduction 2 Item Schematics ----------------- None Robot Schematics ------------------ None Fabricated ------------ Nothing Repaired ---------- Nothing Studied --------- None Alien Tech Used ----------------- None Achievements -------------- None Challenges ------------ None Game ------ Seed PointyDeliveryBrace Manual? 0 Play Time 00:12:22 Cumulative 30.9 hours Start 2026.01.30 @ 00:16:56 End 2026.01.30 @ 00:28:18 Sessions 1 Manual Loads 0 Difficulty Rogue Special Mode None Game No. 65 Rogue 65 Adventurer 0 Explorer 0 Win Type - Total 0 Types 0/0/0/0/0/0/0/0/0/0 Lore% 16 Gallery% 23 Achievement% 19 Wizard Run 0 Options --------- Layout 0 ASCII 0 Keyboard 1 Movement Arrows Keybinds 0 Fullscreen 1 Font 18/Smallcaps Map View 38x25 Zoom Use 98% Tactical HUD 1 Map Filters NONE Filters NONE Steam 1 RUN: 85d2ba7e-4dc3-4fb1-9632-8976db797604